fUST/lending_fUST_20240612
["ID","MTS","AMOUNT","RATE_DAILY","PERIOD"]
[329244352,1718199050002,-500.0,0.00016438,2]
[329244354,1718199050013,-500.0,0.00016438,2]
[329244356,1718199050024,-500.0,0.00016438,2]
[329244358,1718199050039,-500.0,0.00016438,2]
[329244360,1718199050049,-505.09613026,0.00016438,2]
[329244362,1718199050060,-500.0,0.00016438,2]
[329244364,1718199050072,-500.0,0.00016438,2]
[329244366,1718199050083,-459.84823658,0.00016438,2]
[329244368,1718199050093,-500.0,0.00016438,2]
[329244370,1718199050104,-500.0,0.00016438,2]
[329244372,1718199050114,-438.95784715,0.00016438,2]
[329244374,1718199050125,-500.0,0.00016438,2]
[329244376,1718199050137,-502.84122606,0.00016438,2]
[329244378,1718199050148,-504.02507542,0.00016438,2]
[329244380,1718199050160,-500.0,0.00016438,2]
[329244382,1718199050170,-500.0,0.00016438,2]
[329244384,1718199050181,-500.0,0.00016438,2]
[329244386,1718199050192,-500.0,0.00016438,2]
[329244388,1718199050204,-500.0,0.00016438,2]
[329244390,1718199050215,-503.43954632,0.00016438,2]
[329244392,1718199050239,-500.0,0.00016438,2]
[329244396,1718199050254,-500.0,0.00016438,2]
[329244398,1718199050265,-500.0,0.00016438,2]
[329244401,1718199050276,-500.0,0.00016438,2]
[329244403,1718199050290,-500.0,0.00016438,2]
[329244406,1718199050301,-500.0,0.00016438,2]
[329244409,1718199050312,-501.54747206,0.00016438,2]
[329244412,1718199050322,-500.0,0.00016438,2]
[329244414,1718199050333,-506.10660244,0.00016438,2]
[329244416,1718199050344,-314.30164534,0.00016438,2]
[329244419,1718199050354,-581.7779418,0.00016438,2]
[329244421,1718199050366,-500.0,0.00016438,2]
[329244423,1718199050378,-500.0,0.00016438,2]
[329244425,1718199050389,-500.0,0.00016438,2]
[329244427,1718199050400,-500.0,0.00016438,2]
[329244429,1718199050412,-500.0,0.00016438,2]
[329244431,1718199050423,-473.61424899,0.00016438,2]
[329244433,1718199050436,-500.0,0.00016438,2]
[329244435,1718199050446,-500.0,0.00016438,2]
[329244437,1718199050457,-500.0,0.00016438,2]
[329244439,1718199050471,-500.0,0.00016438,2]
[329244441,1718199050482,-510.24599889,0.00016438,2]
[329244443,1718199050494,-246.77287417,0.00016438,2]
[329244445,1718199050507,-500.0,0.00016438,2]
[329244447,1718199050517,-500.0,0.00016438,2]
[329244466,1718199050738,-500.0,0.00016438,2]
[329244468,1718199050749,-500.0,0.00016438,2]
[329244470,1718199050760,-500.0,0.00016438,2]
[329244472,1718199050771,-394.61922233,0.00016438,2]
[329244474,1718199050791,-501.52015893,0.00016438,2]
[329244475,1718199050802,-500.0,0.00016438,2]
[329244477,1718199050814,-500.0,0.00016438,2]
[329244480,1718199050826,-500.0,0.00016438,2]
[329244481,1718199050837,-500.0,0.00016438,2]
[329244484,1718199050850,-500.0,0.00016438,2]
[329244486,1718199050861,-500.0,0.00016438,2]
[329244487,1718199050872,-500.0,0.00016438,2]
[329244489,1718199050885,-500.0,0.00016438,2]
[329244491,1718199050896,-500.0,0.00016438,2]
[329244493,1718199050909,-500.0,0.00016438,2]
[329244495,1718199050920,-500.0,0.00016438,2]
[329244497,1718199050930,-500.0,0.00016438,2]
[329244499,1718199050940,-500.0,0.00016438,2]
[329244501,1718199050951,-500.0,0.00016438,2]
[329244503,1718199050962,-500.0,0.00016438,2]
[329244505,1718199050973,-500.0,0.00016438,2]
[329244507,1718199050984,-500.0,0.00016438,2]
[329244509,1718199050994,-500.0,0.00016438,2]
[329244511,1718199051004,-500.0,0.00016438,2]
[329244513,1718199051014,-500.0,0.00016438,2]
[329244515,1718199051024,-500.0,0.00016438,2]
[329244517,1718199051035,-500.0,0.00016438,2]
[329244519,1718199051046,-500.0,0.00016438,2]
[329244521,1718199051056,-500.0,0.00016438,2]
[329244523,1718199051068,-500.0,0.00016438,2]
[329244525,1718199051078,-500.0,0.00016438,2]
[329244527,1718199051089,-500.0,0.00016438,2]
[329244529,1718199051101,-500.0,0.00016438,2]
[329244531,1718199051111,-500.0,0.00016438,2]
[329244533,1718199051122,-502.73553741,0.00016438,2]
[329244535,1718199051133,-500.0,0.00016438,2]
[329244537,1718199051144,-500.0,0.00016438,2]
[329244539,1718199051154,-500.0,0.00016438,2]
[329244541,1718199051164,-508.3279337,0.00016438,2]
[329244543,1718199051175,-500.0,0.00016438,2]
[329244545,1718199051185,-268.79483604,0.00016438,2]
[329244547,1718199051195,-500.0,0.00016438,2]
[329244549,1718199051205,-500.0,0.00016438,2]
[329244551,1718199051216,-500.46832935,0.00016438,2]
[329244552,1718199051227,-364.40529576,0.00016438,2]
[329244554,1718199051246,-507.14075811,0.00016438,2]
[329244556,1718199051257,-500.0,0.00016438,2]
[329244558,1718199051268,-500.0,0.00016438,2]
[329244560,1718199051278,-500.0,0.00016438,2]
[329244562,1718199051290,-500.0,0.00016438,2]
[329244564,1718199051299,-500.0,0.00016438,2]
[329244566,1718199051309,-584.12,0.00016438,2]
[329244568,1718199051320,-501.34714242,0.00016438,2]
[329244570,1718199051330,-500.0,0.00016438,2]
[329244572,1718199051340,-500.0,0.00016438,2]
[329244574,1718199051351,-500.0,0.00016438,2]
[329244576,1718199051361,-500.0,0.00016438,2]
[329244578,1718199051372,-424.21154394,0.00016438,2]
[329244580,1718199051382,-500.0,0.00016438,2]
[329244582,1718199051392,-500.0,0.00016438,2]
[329244584,1718199051403,-500.0,0.00016438,2]
[329244586,1718199051413,-500.0,0.00016438,2]
[329244588,1718199051423,-500.0,0.00016438,2]
[329244590,1718199051433,-500.0,0.00016438,2]
[329244592,1718199051443,-209.36471688,0.00016438,2]
[329244594,1718199051455,-500.0,0.00016438,2]
[329244596,1718199051468,-500.0,0.00016438,2]
[329244598,1718199051478,-265.7993025,0.00016438,2]
[329244600,1718199051488,-500.0,0.00016438,2]
[329244602,1718199051499,-500.0,0.00016438,2]
[329244604,1718199051509,-489.86295763,0.00016438,2]
[329244606,1718199051520,-500.0,0.00016438,2]
[329244608,1718199051533,-516.43,0.00016438,2]
[329244610,1718199051543,-500.0,0.00016438,2]
[329244612,1718199051557,-506.19296071,0.00016438,2]
[329244614,1718199051566,-500.0,0.00016438,2]
[329244616,1718199051576,-500.0,0.00016438,2]
[329244618,1718199051586,-500.0,0.00016438,2]
[329244620,1718199051596,-505.51142548,0.00016438,2]
[329244622,1718199051607,-500.0,0.00016438,2]
[329244624,1718199051617,-500.0,0.00016438,2]
[329244626,1718199051628,-168.829355,0.00016438,2]
[329244628,1718199051638,-500.0,0.00016438,2]
[329244630,1718199051648,-379.35208139,0.00016438,2]
[329244632,1718199051659,-500.0,0.00016438,2]
[329244634,1718199051670,-557.43522132,0.00016438,2]
[329244636,1718199051681,-417.57360542,0.00016438,2]
[329244638,1718199051692,-500.0,0.00016438,2]
[329244640,1718199051702,-500.0,0.00016438,2]
[329244642,1718199051713,-501.34777582,0.00016438,2]
[329244644,1718199051723,-500.0,0.00016438,2]
[329244646,1718199051734,-503.97175668,0.00016438,2]
[329244648,1718199051744,-267.92387949,0.00016438,2]
[329244650,1718199051755,-500.0,0.00016438,2]
[329244652,1718199051765,-500.0,0.00016438,2]
[329244654,1718199051777,-500.0,0.00016438,2]
[329244656,1718199051790,-500.0,0.00016438,2]
[329244658,1718199051800,-500.0,0.00016438,2]
[329244660,1718199051811,-500.0,0.00016438,2]
[329244662,1718199051821,-500.0,0.00016438,2]
[329244664,1718199051832,-500.0,0.00016438,2]
[329244666,1718199051842,-500.0,0.00016438,2]
[329244668,1718199051853,-500.0,0.00016438,2]
[329244670,1718199051864,-500.0,0.00016438,2]
[329244672,1718199051874,-500.0,0.00016438,2]
[329244674,1718199051884,-500.0,0.00016438,2]
[329244676,1718199051894,-500.0,0.00016438,2]
[329244678,1718199051905,-500.0,0.00016438,2]
[329244680,1718199051916,-500.0,0.00016438,2]
[329244682,1718199051927,-583.99663135,0.00016438,2]
[329244684,1718199051937,-500.0,0.00016438,2]
[329244686,1718199051947,-500.0,0.00016438,2]
[329244688,1718199051957,-500.90002089,0.00016438,2]
[329244690,1718199051967,-502.00397062,0.00016438,2]
[329244692,1718199051978,-529.0065792,0.00016438,2]
[329244694,1718199051988,-505.40509332,0.00016438,2]
[329244695,1718199051998,-500.0,0.00016438,2]
[329244698,1718199052018,-500.0,0.00016438,2]
[329244701,1718199052031,-590.90457138,0.00016438,2]
[329244703,1718199052041,-502.65397186,0.00016438,2]
[329244705,1718199052052,-500.0,0.00016438,2]
[329244707,1718199052063,-516.86107398,0.00016438,2]
[329244708,1718199052074,-500.0,0.00016438,2]
[329244709,1718199052085,-506.32843551,0.00016438,2]
[329244710,1718199052095,-616.3580274,0.00016438,2]
[329244711,1718199052105,-500.0,0.00016438,2]
[329244712,1718199052116,-500.0,0.00016438,2]
[329244713,1718199052126,-502.27060133,0.00016438,2]
[329244714,1718199052137,-500.0,0.00016438,2]
[329244715,1718199052147,-500.0,0.00016438,2]
[329244716,1718199052157,-503.52391237,0.00016438,2]
[329244717,1718199052167,-500.0,0.00016438,2]
[329244718,1718199052177,-503.54349204,0.00016438,2]
[329244719,1718199052188,-500.0,0.00016438,2]
[329244720,1718199052198,-500.0,0.00016438,2]
[329244721,1718199052208,-500.0,0.00016438,2]
[329244722,1718199052219,-586.59021991,0.00016438,2]
[329244724,1718199052232,-256.5595666,0.00016438,2]
[329244726,1718199052248,-500.0,0.00016438,2]
[329244728,1718199052259,-501.20372779,0.00016438,2]
[329244730,1718199052269,-500.0,0.00016438,2]
[329244732,1718199052279,-500.0,0.00016438,2]
[329244734,1718199052291,-500.0,0.00016438,2]
[329244736,1718199052302,-500.0,0.00016438,2]
[329244738,1718199052312,-511.71421316,0.00016438,2]
[329244740,1718199052323,-566.13,0.00016438,2]
[329244742,1718199052333,-500.0,0.00016438,2]
[329244744,1718199052344,-532.9584679,0.00016438,2]
[329244746,1718199052355,-315.54397708,0.00016438,2]
[329244748,1718199052367,-500.0,0.00016438,2]
[329244750,1718199052377,-500.0,0.00016438,2]
[329244752,1718199052389,-501.86665982,0.00016438,2]
[329244754,1718199052400,-500.0,0.00016438,2]
[329244756,1718199052411,-500.0,0.00016438,2]
[329244758,1718199052422,-500.0,0.00016438,2]
[329244760,1718199052433,-500.0,0.00016438,2]
[329244762,1718199052443,-500.0,0.00016438,2]
[329244764,1718199052454,-500.0,0.00016438,2]
[329244766,1718199052466,-500.0,0.00016438,2]
[329244768,1718199052477,-500.0,0.00016438,2]
[329244770,1718199052487,-500.0,0.00016438,2]
[329244772,1718199052498,-500.0,0.00016438,2]
[329244774,1718199052510,-500.0,0.00016438,2]
[329244776,1718199052520,-441.77234693,0.00016438,2]
[329244778,1718199052534,-869.9,0.00016438,2]
[329244780,1718199052547,-500.0,0.00016438,2]
[329244782,1718199052558,-500.0,0.00016438,2]
[329244784,1718199052569,-500.0,0.00016438,2]
[329244786,1718199052580,-505.71111449,0.00016438,2]
[329244788,1718199052591,-500.0,0.00016438,2]
[329244791,1718199052602,-506.83143554,0.00016438,2]
[329244792,1718199052613,-500.0,0.00016438,2]
[329244795,1718199052624,-500.0,0.00016438,2]
[329244797,1718199052636,-653.46,0.00016438,2]
[329244799,1718199052647,-500.0,0.00016438,2]
[329244801,1718199052661,-500.0,0.00016438,2]
[329244803,1718199052671,-500.0,0.00016438,2]
[329244804,1718199052682,-250.0,0.00016438,2]
[329244807,1718199052692,-500.0,0.00016438,2]
[329244808,1718199052703,-927.73,0.00016438,2]
[329244811,1718199052713,-500.0,0.00016438,2]
[329244812,1718199052723,-500.0,0.00016438,2]
[329244814,1718199052733,-500.0,0.00016438,2]
[329244816,1718199052744,-500.0,0.00016438,2]
[329244818,1718199052754,-500.0,0.00016438,2]
[329244820,1718199052764,-500.0,0.00016438,2]
[329244822,1718199052774,-562.29667143,0.00016438,2]
[329244824,1718199052786,-862.72,0.00016438,2]
[329244826,1718199052796,-500.0,0.00016438,2]
[329244828,1718199052807,-500.0,0.00016438,2]
[329244830,1718199052817,-500.0,0.00016438,2]
[329244832,1718199052827,-500.0,0.00016438,2]
[329244834,1718199052838,-5124.34,0.00016438,2]
[329244836,1718199052848,-501.29929914,0.00016438,2]
[329244838,1718199052859,-500.0,0.00016438,2]
[329244840,1718199052869,-505.63589889,0.00016438,2]
[329244842,1718199052879,-500.0,0.00016438,2]
[329244844,1718199052889,-503.21369775,0.00016438,2]
[329244846,1718199052900,-500.0,0.00016438,2]
[329244848,1718199052910,-502.94769775,0.00016438,2]
[329244850,1718199052921,-1638.16,0.00016438,2]
[329244852,1718199052931,-500.0,0.00016438,2]
[329244854,1718199052942,-500.0,0.00016438,2]
[329244856,1718199052969,-502.12414477,0.00016438,2]
[329244858,1718199052979,-634.23,0.00016438,2]
[329244860,1718199052989,-500.0,0.00016438,2]
[329244862,1718199053000,-500.0,0.00016438,4]
[329244864,1718199053010,-500.0,0.00016438,2]
[329244866,1718199053021,-500.0,0.00016438,2]
[329244868,1718199053035,-500.0,0.00016438,2]
[329244870,1718199053045,-500.0,0.00016438,2]
[329244873,1718199053056,-500.0,0.00016438,2]
[329244874,1718199053066,-500.0,0.00016438,2]
[329244877,1718199053076,-500.0,0.00016438,2]
[329244878,1718199053086,-500.0,0.00016438,2]
[329244880,1718199053097,-500.0,0.00016438,2]
[329244882,1718199053107,-245.77751905,0.00016438,2]
[329244884,1718199053117,-500.0,0.00016438,2]
[329244886,1718199053127,-500.0,0.00016438,2]
[329244888,1718199053138,-500.0,0.00016438,2]
[329244890,1718199053149,-500.0,0.00016438,2]
[329244892,1718199053159,-500.0,0.00016438,2]
[329244895,1718199053169,-500.0,0.00016438,2]
[329244896,1718199053179,-500.0,0.00016438,2]
[329244898,1718199053190,-241.28827611,0.00016438,2]
[329244900,1718199053200,-504.05378892,0.00016438,2]
[329244902,1718199053211,-500.0,0.00016438,2]
[329244904,1718199053221,-500.0,0.00016438,2]
[329244907,1718199053242,-500.0,0.00016438,2]
[329244909,1718199053253,-500.0,0.00016438,2]
[329244911,1718199053267,-504.77,0.00016438,2]
[329244913,1718199053278,-500.0,0.00016438,2]
[329244915,1718199053292,-500.0,0.00016438,2]
[329244917,1718199053303,-500.0,0.00016438,2]
[329244919,1718199053313,-501.73447581,0.00016438,2]
[329244921,1718199053330,-500.0,0.00016438,2]
[329244923,1718199053340,-570.0,0.00016438,2]
[329244925,1718199053351,-4489.36,0.00016438,2]
[329244927,1718199053362,-500.0,0.00016438,2]
[329244929,1718199053372,-500.0,0.00016438,2]
[329244931,1718199053383,-396.13811278,0.00016438,2]
[329244933,1718199053393,-7392.75,0.00016438,2]
[329244935,1718199053403,-500.0,0.00016438,2]
[329244937,1718199053414,-500.55091856,0.00016438,2]
[329244939,1718199053424,-17956.35344613,0.00016438,2]
[329244963,1718199053679,-500.29653789,0.00016438,2]
[329244966,1718199053691,-209.53001598,0.00016438,2]
[329244967,1718199053701,-502.06598446,0.00016438,2]
[329244969,1718199053710,-1915.45,0.00016438,2]
[329244971,1718199053721,-500.0,0.00016438,2]
[329244973,1718199053731,-500.0,0.00016438,2]
[329244975,1718199053741,-513.19717429,0.00016438,2]
[329244977,1718199053754,-500.0,0.00016438,2]
[329244979,1718199053764,-500.0,0.00016438,2]
[329244981,1718199053776,-1246.04,0.00016438,2]
[329244983,1718199053789,-500.0,0.00016438,2]
[329244985,1718199053799,-500.0,0.00016438,2]
[329244987,1718199053809,-501.39424638,0.00016438,2]
[329244989,1718199053819,-500.0,0.00016438,2]
[329244991,1718199053829,-500.09875197,0.00016438,2]
[329244993,1718199053842,-500.0,0.00016438,2]
[329244995,1718199053856,-4813.55,0.00016438,2]
[329244997,1718199053867,-202.1669195,0.00016438,2]
[329244999,1718199053878,-500.0,0.00016438,2]
[329245001,1718199053888,-500.8717857,0.00016438,2]
[329245003,1718199053899,-520.28659467,0.00016438,2]
[329245005,1718199053909,-537.06028038,0.00016438,2]
[329245007,1718199053920,-500.0,0.00016438,2]
[329245009,1718199053930,-503.80010754,0.00016438,2]
[329245011,1718199053941,-595.65055958,0.00016438,2]
[329245013,1718199053951,-11881.46,0.00016438,2]
[329245015,1718199053963,-500.0,0.00016438,2]
[329245017,1718199053974,-500.0,0.00016438,2]
[329245019,1718199053984,-500.0,0.00016438,2]
[329245021,1718199053994,-500.0,0.00016438,2]
[329245023,1718199054006,-593.26989627,0.00016438,2]
[329245025,1718199054017,-1009.35867159,0.00016438,2]
[329245027,1718199054028,-500.0,0.00016438,2]
[329245029,1718199054048,-500.0,0.00016438,2]
[329245030,1718199054059,-500.0,0.00016438,2]
[329245032,1718199054075,-500.0,0.00016438,2]
[329245035,1718199054091,-500.0,0.00016438,2]
[329245037,1718199054102,-514.89471071,0.00016438,2]
[329245039,1718199054113,-505.79444727,0.00016438,2]
[329245041,1718199054124,-502.81665185,0.00016438,2]
[329245043,1718199054134,-500.0,0.00016438,2]
[329245045,1718199054145,-500.0,0.00016438,2]
[329245047,1718199054157,-472.09947383,0.00016438,2]
[329245049,1718199054167,-500.0,0.00016438,2]
[329245051,1718199054177,-500.0,0.00016438,2]
[329245053,1718199054204,-500.0,0.00016438,2]
[329245055,1718199054215,-500.0,0.00016438,2]
[329245056,1718199054235,-500.0,0.00016438,2]
[329245071,1718199054403,-495.71445367,0.00016438,2]
[329245073,1718199054414,-501.15983677,0.00016438,2]
[329245075,1718199054424,-500.0,0.00016438,2]
[329245077,1718199054435,-509.26123511,0.00016438,2]
[329245079,1718199054461,-500.0,0.00016438,2]
[329245081,1718199054476,-500.0,0.00016438,2]
[329245083,1718199054487,-502.33603809,0.00016438,2]
[329245085,1718199054507,-500.57995138,0.00016438,2]
[329245088,1718199054524,-500.0,0.00016438,2]
[329245089,1718199054536,-500.0,0.00016438,2]
[329245091,1718199054548,-500.0,0.00016438,2]
[329245093,1718199054559,-783.22,0.00016438,2]
[329245095,1718199054570,-500.0,0.00016438,2]
[329245097,1718199054581,-500.0,0.00016438,2]
[329245099,1718199054592,-1629.01,0.00016438,2]
[329245102,1718199054615,-500.0,0.00016438,2]
[329245105,1718199054631,-500.0,0.00016438,2]
[329245107,1718199054642,-526.56368195,0.00016438,2]
[329245109,1718199054653,-500.0,0.00016438,2]
[329245111,1718199054664,-500.0,0.00016438,2]
[329245113,1718199054675,-500.0,0.00016438,2]
[329245115,1718199054686,-155.00155002,0.000165,2]
[329245117,1718199054697,-2030.08290706,0.00016681,2]
[329245119,1718199054709,-500.0,0.00016711,2]
[329245121,1718199054720,-500.0,0.00016711,2]
[329245123,1718199054732,-500.0,0.00016711,2]
[329245125,1718199054743,-500.0,0.00016711,2]
[329245127,1718199054754,-500.0,0.00016711,2]
[329245128,1718199054765,-500.0,0.00016711,2]
[329245130,1718199054776,-500.0,0.00016711,2]
[329245133,1718199054793,-500.0,0.00016711,2]
[329245135,1718199054805,-503.78921423,0.00016712,2]
[329245136,1718199054814,-500.0,0.00016712,2]
[329245138,1718199054826,-500.0,0.00016712,2]
[329245141,1718199054838,-500.0,0.00016712,2]
[329245143,1718199054849,-502.8325886,0.00016712,2]
[329245145,1718199054860,-500.0,0.00016712,2]
[329245147,1718199054871,-500.0,0.00016712,2]
[329245148,1718199054881,-500.0,0.00016712,2]
[329245150,1718199054892,-500.0,0.00016712,2]
[329245152,1718199054904,-500.0,0.00016712,2]
[329245155,1718199054916,-500.0,0.00016712,2]
[329245157,1718199054927,-500.0,0.00016712,2]
[329245159,1718199054937,-502.89806245,0.00016712,2]
[329245160,1718199054950,-500.0,0.00016712,2]
[329245163,1718199054961,-500.0,0.00016712,2]
[329245165,1718199054973,-500.0,0.00016712,2]
[329245167,1718199054983,-500.0,0.00016712,2]
[329245169,1718199054994,-500.0,0.00016712,2]
[329245171,1718199055006,-500.0,0.00016712,2]
[329245173,1718199055017,-500.0,0.00016712,2]
[329245175,1718199055027,-500.0,0.00016712,2]
[329245177,1718199055041,-500.0,0.00016712,2]
[329245179,1718199055051,-500.0,0.00016712,2]
[329245180,1718199055061,-500.0,0.00016712,2]
[329245181,1718199055071,-500.0,0.00016712,2]
[329245182,1718199055082,-519.59,0.00016712,2]
[329245183,1718199055093,-500.0,0.00016712,2]
[329245185,1718199055104,-500.0,0.00016712,2]
[329245187,1718199055115,-155.00155002,0.00016712,2]
[329245189,1718199055125,-500.0,0.00016712,2]
[329245191,1718199055136,-505.8504904,0.00016712,2]
[329245193,1718199055146,-500.0,0.00016712,2]
[329245195,1718199055156,-500.0,0.00016712,2]
[329245197,1718199055167,-500.0,0.00016712,2]
[329245199,1718199055177,-500.0,0.00016712,2]
[329245201,1718199055187,-500.0,0.00016712,2]
[329245203,1718199055198,-500.0,0.00016712,2]
[329245205,1718199055209,-500.0,0.00016712,2]
[329245207,1718199055220,-500.0,0.00016712,2]
[329245209,1718199055249,-500.0,0.00016712,2]
[329245211,1718199055260,-500.0,0.00016712,2]
[329245213,1718199055271,-491.36308645,0.00016712,2]
[329245215,1718199055282,-500.0,0.00016712,2]
[329245217,1718199055295,-500.0,0.00016712,2]
[329245219,1718199055306,-500.0,0.00016712,2]
[329245221,1718199055317,-500.0,0.00016712,2]
[329245223,1718199055328,-500.0,0.00016712,2]
[329245225,1718199055339,-500.0,0.00016712,2]
[329245227,1718199055349,-500.0,0.00016712,2]
[329245229,1718199055360,-500.0,0.00016712,2]
[329245232,1718199055371,-500.0,0.00016712,2]
[329245233,1718199055381,-500.0,0.00016712,2]
[329245236,1718199055392,-500.0,0.00016712,2]
[329245238,1718199055403,-500.0,0.00016712,2]
[329245240,1718199055414,-500.0,0.00016712,2]
[329245241,1718199055424,-500.0,0.00016712,2]
[329245243,1718199055434,-500.0,0.00016712,2]
[329245245,1718199055445,-1107.69609106,0.00016712,2]
[329245248,1718199055455,-429.94164619,0.00016712,2]
[329245249,1718199055467,-500.0,0.00016712,2]
[329245251,1718199055477,-500.0,0.00016712,2]
[329245253,1718199055488,-500.0,0.00016712,2]
[329245255,1718199055499,-500.0,0.00016712,2]
[329245257,1718199055511,-584.12,0.00016712,2]
[329245259,1718199055521,-500.0,0.00016712,2]
[329245261,1718199055532,-500.0,0.00016712,2]
[329245263,1718199055544,-395.63674927,0.00016712,2]
[329245264,1718199055556,-500.0,0.00016712,2]
[329245265,1718199055567,-500.0,0.00016712,2]
[329245266,1718199055578,-500.0,0.00016712,2]
[329245267,1718199055588,-500.0,0.00016712,2]
[329245268,1718199055599,-500.0,0.00016712,2]
[329245269,1718199055611,-516.43,0.00016712,2]
[329245270,1718199055624,-500.0,0.00016712,2]
[329245271,1718199055636,-522.21627097,0.00016712,2]
[329245272,1718199055647,-500.0,0.00016712,2]
[329245273,1718199055659,-478.98554951,0.00016712,2]
[329245274,1718199055671,-500.0,0.00016712,2]
[329245275,1718199055685,-500.0,0.00016712,2]
[329245276,1718199055697,-500.0,0.00016712,2]
[329245277,1718199055708,-500.0,0.00016712,2]
[329245278,1718199055719,-500.0,0.00016712,2]
[329245279,1718199055733,-500.0,0.00016712,2]
[329245280,1718199055744,-500.0,0.00016712,2]
[329245282,1718199055755,-500.0,0.00016712,2]
[329245284,1718199055766,-500.0,0.00016712,2]
[329245286,1718199055778,-339.09202335,0.00016712,2]
[329245288,1718199055790,-503.46470665,0.00016712,2]
[329245290,1718199055802,-500.0,0.00016712,2]
[329245292,1718199055813,-500.0,0.00016712,2]
[329245294,1718199055824,-500.0,0.00016712,2]
[329245296,1718199055834,-500.0,0.00016712,2]
[329245298,1718199055845,-512.11720004,0.00016712,2]
[329245300,1718199055855,-502.96666305,0.00016712,2]
[329245302,1718199055866,-500.0,0.00016712,2]
[329245304,1718199055878,-500.0,0.00016712,2]
[329245306,1718199055888,-404.57647126,0.00016712,2]
[329245308,1718199055899,-506.16298713,0.00016712,2]
[329245310,1718199055910,-500.0,0.00016712,2]
[329245312,1718199055921,-500.0,0.00016712,2]
[329245314,1718199055932,-500.0,0.00016712,2]
[329245316,1718199055942,-566.13,0.00016712,2]
[329245318,1718199055953,-500.0,0.00016712,2]
[329245320,1718199055963,-500.0,0.00016712,2]
[329245322,1718199055974,-500.0,0.00016712,2]
[329245324,1718199055984,-500.0,0.00016712,2]
[329245326,1718199055995,-500.0,0.00016712,2]
[329245328,1718199056005,-500.0,0.00016712,2]
[329245330,1718199056015,-500.0,0.00016712,2]
[329245332,1718199056025,-869.9,0.00016712,2]
[329245334,1718199056035,-500.0,0.00016712,2]
[329245336,1718199056046,-500.0,0.00016712,2]
[329245338,1718199056056,-504.51495789,0.00016712,2]
[329245340,1718199056066,-500.0,0.00016712,2]
[329245342,1718199056076,-500.0,0.00016712,2]
[329245344,1718199056086,-653.46,0.00016712,2]
[329245346,1718199056096,-500.0,0.00016712,2]
[329245348,1718199056107,-500.0,0.00016712,2]
[329245350,1718199056117,-228.45343349,0.00016712,2]
[329245352,1718199056127,-250.0,0.00016712,2]
[329245354,1718199056137,-500.0,0.00016712,2]
[329245356,1718199056147,-927.73,0.00016712,2]
[329245358,1718199056158,-500.0,0.00016712,2]
[329245360,1718199056168,-500.0,0.00016712,2]
[329245362,1718199056178,-862.72,0.00016712,2]
[329245364,1718199056189,-500.0,0.00016712,2]
[329245366,1718199056199,-500.0,0.00016712,2]
[329245368,1718199056209,-500.0,0.00016712,2]
[329245370,1718199056220,-5124.34,0.00016712,2]
[329245372,1718199056236,-500.0,0.00016712,2]
[329245374,1718199056252,-1638.16,0.00016712,2]